[Event "Titled Tuesday Blitz August 24 2021"]
[White "Starozhilov, Leonid"]
[Black "Delorme, Alban"]
[WhiteFideId "14106752"]
[BlackFideId "623636"]
[WhiteElo "2414"]
[BlackElo "2197"]
[Result "1-0"]
[Round "08"]
[TimeControl "180+1"]
[Date "2021.08.24"]
[WhiteClock "0:00:06"]
[BlackClock "0:00:02"]

1. b3 {[%clk 0:03:00]}  c5 {[%clk 0:02:57]} 2. Bb2 {[%clk 0:03:01]}  Nc6 {[%clk 0:02:57]} 3. Nf3 {[%clk 0:03:01]}  d6 {[%clk 0:02:55]} 4. e4 {[%clk 0:02:54]}  e5 {[%clk 0:02:50]} 5. Bc4 {[%clk 0:02:51]}  g6 {[%clk 0:02:48]} 6. h4 {[%clk 0:02:50]}  Bg4 {[%clk 0:02:43]} 7. Nc3 {[%clk 0:02:49]}  Bg7 {[%clk 0:02:38]} 8. Nd5 {[%clk 0:02:47]}  Nge7 {[%clk 0:02:25]} 9. Ne3 {[%clk 0:02:42]}  Be6 {[%clk 0:01:58]} 10. Bxe6 {[%clk 0:02:26]}  fxe6 {[%clk 0:01:59]} 11. Ng5 {[%clk 0:02:19]}  Qd7 {[%clk 0:01:58]} 12. Qg4 {[%clk 0:02:18]}  Nd4 {[%clk 0:01:58]} 13. c3 {[%clk 0:02:07]}  Ndc6 {[%clk 0:01:40]} 14. Qxe6 {[%clk 0:01:46]}  O-O-O {[%clk 0:01:28]} 15. Ke2 {[%clk 0:01:24]}  h6 {[%clk 0:01:20]} 16. Qxd7+ {[%clk 0:01:24]}  Rxd7 {[%clk 0:01:21]} 17. Nf3 {[%clk 0:01:18]}  d5 {[%clk 0:01:15]} 18. d3 {[%clk 0:01:12]}  Rhd8 {[%clk 0:01:06]} 19. exd5 {[%clk 0:01:04]}  Nxd5 {[%clk 0:01:05]} 20. Nxd5 {[%clk 0:01:04]}  Rxd5 {[%clk 0:01:06]} 21. Rad1 {[%clk 0:01:04]}  R5d7 {[%clk 0:00:58]} 22. Rhe1 {[%clk 0:00:52]}  Kc7 {[%clk 0:00:56]} 23. Bc1 {[%clk 0:00:49]}  Re7 {[%clk 0:00:40]} 24. Nd2 {[%clk 0:00:47]}  e4 {[%clk 0:00:32]} 25. Nxe4 {[%clk 0:00:39]}  Bxc3 {[%clk 0:00:32]} 26. Bf4+ {[%clk 0:00:13]}  Kb6 {[%clk 0:00:31]} 27. Be3 {[%clk 0:00:13]}  Bd4 {[%clk 0:00:12]} 28. Bxh6 {[%clk 0:00:12]}  Nb4 {[%clk 0:00:10]} 29. Bg5 {[%clk 0:00:12]}  Rde8 {[%clk 0:00:07]} 30. Bxe7 {[%clk 0:00:11]}  Rxe7 {[%clk 0:00:08]} 31. a4 {[%clk 0:00:07]}  Na2 {[%clk 0:00:08]} 32. Rc1 {[%clk 0:00:06]}  Nxc1+ {[%clk 0:00:08]} 33. Rxc1 {[%clk 0:00:07]}  Ka5 {[%clk 0:00:07]} 34. Rc4 {[%clk 0:00:07]}  b6 {[%clk 0:00:04]} 35. b4+ {[%clk 0:00:05]}  Kxa4 {[%clk 0:00:03]} 36. bxc5+ {[%clk 0:00:06]}  Kb5 {[%clk 0:00:04]} 37. Rxd4 {[%clk 0:00:06]}  bxc5 {[%clk 0:00:04]} 38. Rc4 {[%clk 0:00:06]}  a5 {[%clk 0:00:04]} 39. Rxc5+ {[%clk 0:00:06]}  Kb4 {[%clk 0:00:04]} 40. Rc8 {[%clk 0:00:05]}  Ra7 {[%clk 0:00:02]} 41. Rb8+ {[%clk 0:00:05]}  Ka3 {[%clk 0:00:03]} 42. Nc3 {[%clk 0:00:05]}  a4 {[%clk 0:00:04]} 43. Nb5+ {[%clk 0:00:05]}  Ka2 {[%clk 0:00:02]} 44. Nxa7 {[%clk 0:00:06]} 1-0


[Site "https://www.chess.com"]

[Event "Titled Tuesday Blitz August 24 2021"]
[White "Tarigan, Gilbert Elroy"]
[Black "Tokhirjonova, Gulrukhbegim"]
[WhiteFideId "7108133"]
[BlackFideId "14203626"]
[WhiteElo "1908"]
[BlackElo "2236"]
[Result "1-0"]
[Round "08"]
[TimeControl "180+1"]
[Date "2021.08.24"]
[WhiteClock "0:00:06"]
[BlackClock "0:00:23"]

1. c4 {[%clk 0:03:00]}  e6 {[%clk 0:02:56]} 2. Nc3 {[%clk 0:03:00]}  d5 {[%clk 0:02:56]} 3. d4 {[%clk 0:03:01]}  Be7 {[%clk 0:02:55]} 4. Nf3 {[%clk 0:03:00]}  Nf6 {[%clk 0:02:54]} 5. cxd5 {[%clk 0:03:00]}  Nxd5 {[%clk 0:02:54]} 6. e4 {[%clk 0:02:57]}  Nxc3 {[%clk 0:02:53]} 7. bxc3 {[%clk 0:02:58]}  c5 {[%clk 0:02:53]} 8. Bd3 {[%clk 0:02:52]}  cxd4 {[%clk 0:02:53]} 9. cxd4 {[%clk 0:02:53]}  Nc6 {[%clk 0:02:54]} 10. O-O {[%clk 0:02:51]}  h6 {[%clk 0:02:51]} 11. Bb2 {[%clk 0:02:51]}  O-O {[%clk 0:02:51]} 12. Rc1 {[%clk 0:02:49]}  Bd7 {[%clk 0:02:48]} 13. Qe2 {[%clk 0:02:46]}  Qb6 {[%clk 0:02:48]} 14. d5 {[%clk 0:02:41]}  Nb4 {[%clk 0:02:43]} 15. Bd4 {[%clk 0:02:24]}  Qa5 {[%clk 0:02:40]} 16. Ne5 {[%clk 0:02:23]}  Nxd3 {[%clk 0:02:35]} 17. Nxd7 {[%clk 0:02:03]}  Nxc1 {[%clk 0:02:35]} 18. Qg4 {[%clk 0:01:55]}  Ne2+ {[%clk 0:01:39]} 19. Qxe2 {[%clk 0:01:53]}  Rfd8 {[%clk 0:01:38]} 20. Qg4 {[%clk 0:01:50]}  Bg5 {[%clk 0:01:33]} 21. dxe6 {[%clk 0:01:47]}  Qd2 {[%clk 0:01:16]} 22. exf7+ {[%clk 0:01:35]}  Kxf7 {[%clk 0:01:16]} 23. Ne5+ {[%clk 0:01:19]}  Kg8 {[%clk 0:01:08]} 24. Qe6+ {[%clk 0:01:18]}  Kh7 {[%clk 0:01:08]} 25. Qg6+ {[%clk 0:01:05]}  Kg8 {[%clk 0:01:06]} 26. Nf3 {[%clk 0:00:49]}  Qxd4 {[%clk 0:01:05]} 27. Nxd4 {[%clk 0:00:44]}  Rxd4 {[%clk 0:01:06]} 28. f4 {[%clk 0:00:43]}  Be7 {[%clk 0:01:00]} 29. Qe6+ {[%clk 0:00:40]}  Kf8 {[%clk 0:01:01]} 30. f5 {[%clk 0:00:35]}  Rad8 {[%clk 0:00:59]} 31. g3 {[%clk 0:00:16]}  Bc5 {[%clk 0:00:57]} 32. Kg2 {[%clk 0:00:15]}  Re8 {[%clk 0:00:57]} 33. Qg6 {[%clk 0:00:10]}  Rd2+ {[%clk 0:00:31]} 34. Kh3 {[%clk 0:00:09]}  Bd4 {[%clk 0:00:31]} 35. f6 {[%clk 0:00:07]}  gxf6 {[%clk 0:00:31]} 36. Rxf6+ {[%clk 0:00:04]}  Bxf6 {[%clk 0:00:26]} 37. Qxf6+ {[%clk 0:00:05]}  Kg8 {[%clk 0:00:25]} 38. Qg6+ {[%clk 0:00:06]}  Kf8 {[%clk 0:00:25]} 39. Qxh6+ {[%clk 0:00:05]}  Kf7 {[%clk 0:00:26]} 40. Qxd2 {[%clk 0:00:06]}  Rxe4 {[%clk 0:00:26]} 41. Qf2+ {[%clk 0:00:06]}  Ke6 {[%clk 0:00:26]} 42. Qxa7 {[%clk 0:00:06]}  Rb4 {[%clk 0:00:25]} 43. Qe3+ {[%clk 0:00:06]}  Kd5 {[%clk 0:00:25]} 44. g4 {[%clk 0:00:06]}  Re4 {[%clk 0:00:22]} 45. Qxe4+ {[%clk 0:00:05]}  Kxe4 {[%clk 0:00:23]} 46. Kh4 {[%clk 0:00:06]} 1-0


[Site "https://www.chess.com"]

[Event "Titled Tuesday Blitz August 24 2021"]
[White "Timmermans, Mark"]
[Black "Indjic, Aleksandar"]
[WhiteFideId "1026399"]
[BlackFideId "911925"]
[WhiteElo "2460"]
[BlackElo "2643"]
[Result "1/2-1/2"]
[Round "08"]
[TimeControl "180+1"]
[Date "2021.08.24"]
[WhiteClock "0:00:16"]
[BlackClock "0:00:05"]

1. b4 {[%clk 0:03:00]}  g6 {[%clk 0:02:56]} 2. Bb2 {[%clk 0:03:00]}  Nf6 {[%clk 0:02:56]} 3. c4 {[%clk 0:03:01]}  Bg7 {[%clk 0:02:55]} 4. a4 {[%clk 0:02:57]}  O-O {[%clk 0:02:55]} 5. b5 {[%clk 0:02:57]}  d6 {[%clk 0:02:50]} 6. e3 {[%clk 0:02:58]}  e5 {[%clk 0:02:48]} 7. Nc3 {[%clk 0:02:54]}  c6 {[%clk 0:02:45]} 8. Nf3 {[%clk 0:02:55]}  Re8 {[%clk 0:02:44]} 9. Be2 {[%clk 0:02:55]}  d5 {[%clk 0:02:43]} 10. d4 {[%clk 0:02:55]}  e4 {[%clk 0:02:42]} 11. Nd2 {[%clk 0:02:54]}  Nbd7 {[%clk 0:02:40]} 12. bxc6 {[%clk 0:02:49]}  bxc6 {[%clk 0:02:39]} 13. cxd5 {[%clk 0:02:50]}  cxd5 {[%clk 0:02:39]} 14. Nb5 {[%clk 0:02:51]}  Nf8 {[%clk 0:02:37]} 15. Ba3 {[%clk 0:02:51]}  h5 {[%clk 0:02:16]} 16. Rc1 {[%clk 0:02:38]}  Ne6 {[%clk 0:01:32]} 17. Nd6 {[%clk 0:02:23]}  Bd7 {[%clk 0:01:30]} 18. Nxe8 {[%clk 0:02:23]}  Qxe8 {[%clk 0:01:31]} 19. Ra1 {[%clk 0:02:10]}  Bxa4 {[%clk 0:01:29]} 20. Qc1 {[%clk 0:02:09]}  h4 {[%clk 0:01:28]} 21. O-O {[%clk 0:02:07]}  h3 {[%clk 0:01:27]} 22. g3 {[%clk 0:02:06]}  Ng5 {[%clk 0:01:27]} 23. Bd6 {[%clk 0:01:59]}  Bb5 {[%clk 0:01:21]} 24. Bxb5 {[%clk 0:01:55]}  Qxb5 {[%clk 0:01:22]} 25. Bf4 {[%clk 0:01:55]}  Ne6 {[%clk 0:01:11]} 26. f3 {[%clk 0:01:44]}  exf3 {[%clk 0:01:07]} 27. Rxf3 {[%clk 0:01:44]}  Ng4 {[%clk 0:01:01]} 28. Qf1 {[%clk 0:01:40]}  Qb2 {[%clk 0:01:00]} 29. Rd1 {[%clk 0:01:40]}  Qc2 {[%clk 0:00:53]} 30. Qe1 {[%clk 0:01:11]}  Re8 {[%clk 0:00:40]} 31. Rc1 {[%clk 0:01:09]}  Qd3 {[%clk 0:00:40]} 32. Be5 {[%clk 0:00:34]}  Bxe5 {[%clk 0:00:35]} 33. dxe5 {[%clk 0:00:35]}  Nxe5 {[%clk 0:00:34]} 34. Rf2 {[%clk 0:00:34]}  Ng5 {[%clk 0:00:33]} 35. Qe2 {[%clk 0:00:28]}  Qa3 {[%clk 0:00:26]} 36. Rcf1 {[%clk 0:00:23]}  a5 {[%clk 0:00:23]} 37. Qb5 {[%clk 0:00:23]}  Re7 {[%clk 0:00:20]} 38. Qb6 {[%clk 0:00:19]}  Ng4 {[%clk 0:00:17]} 39. Re2 {[%clk 0:00:18]}  Rxe3 {[%clk 0:00:15]} 40. Rxe3 {[%clk 0:00:16]}  Qxe3+ {[%clk 0:00:13]} 41. Qxe3 {[%clk 0:00:16]}  Nxe3 {[%clk 0:00:14]} 42. Ra1 {[%clk 0:00:16]}  d4 {[%clk 0:00:14]} 43. Rxa5 {[%clk 0:00:16]}  Ne6 {[%clk 0:00:15]} 44. Ra8+ {[%clk 0:00:16]}  Kg7 {[%clk 0:00:14]} 45. Ra7 {[%clk 0:00:17]}  Kf6 {[%clk 0:00:15]} 46. Rd7 {[%clk 0:00:16]}  g5 {[%clk 0:00:14]} 47. Nf3 {[%clk 0:00:16]}  g4 {[%clk 0:00:04]} 48. Nxd4 {[%clk 0:00:15]}  Nxd4 {[%clk 0:00:03]} 49. Rxd4 {[%clk 0:00:16]}  Kg5 {[%clk 0:00:04]} 50. Ra4 {[%clk 0:00:16]}  f5 {[%clk 0:00:04]} 51. Kf2 {[%clk 0:00:15]}  Nd5 {[%clk 0:00:04]} 52. Ra5 {[%clk 0:00:15]}  Nc3 {[%clk 0:00:05]} 53. Kg1 {[%clk 0:00:13]}  Ne4 {[%clk 0:00:05]} 54. Rb5 {[%clk 0:00:13]}  Kf6 {[%clk 0:00:05]} 55. Ra5 {[%clk 0:00:13]}  Ke6 {[%clk 0:00:05]} 56. Rb5 {[%clk 0:00:14]}  Kf6 {[%clk 0:00:06]} 57. Ra5 {[%clk 0:00:15]}  Nd2 {[%clk 0:00:06]} 58. Rb5 {[%clk 0:00:14]}  Nf3+ {[%clk 0:00:06]} 59. Kh1 {[%clk 0:00:15]}  Nd4 {[%clk 0:00:07]} 60. Ra5 {[%clk 0:00:15]}  Ke6 {[%clk 0:00:07]} 61. Ra4 {[%clk 0:00:15]}  Nf3 {[%clk 0:00:05]} 62. Ra6+ {[%clk 0:00:16]}  Ke5 {[%clk 0:00:06]} 63. Re6+ {[%clk 0:00:16]}  Kxe6 {[%clk 0:00:05]} 1/2-1/2


[Site "https://www.chess.com"]

[Event "Titled Tuesday Blitz August 24 2021"]
[White "Ulko, Jaroslav"]
[Black "Eynullayev, Altay"]
[WhiteFideId "4116658"]
[BlackFideId "13413562"]
[WhiteElo "2304"]
[BlackElo "2079"]
[Result "1-0"]
[Round "08"]
[TimeControl "180+1"]
[Date "2021.08.24"]
[WhiteClock "0:01:53"]
[BlackClock "0:01:56"]

1. d4 {[%clk 0:03:00]}  Nf6 {[%clk 0:02:59]} 2. Nf3 {[%clk 0:03:00]}  e6 {[%clk 0:02:59]} 3. c4 {[%clk 0:02:59]}  b6 {[%clk 0:02:59]} 4. a3 {[%clk 0:02:58]}  Ba6 {[%clk 0:02:57]} 5. e3 {[%clk 0:02:54]}  d5 {[%clk 0:02:52]} 6. Nbd2 {[%clk 0:02:53]}  Be7 {[%clk 0:02:48]} 7. b3 {[%clk 0:02:52]}  O-O {[%clk 0:02:49]} 8. Bb2 {[%clk 0:02:51]}  c5 {[%clk 0:02:49]} 9. Bd3 {[%clk 0:02:49]}  Nc6 {[%clk 0:02:49]} 10. O-O {[%clk 0:02:47]}  Na5 {[%clk 0:02:43]} 11. Rc1 {[%clk 0:02:46]}  Rc8 {[%clk 0:02:42]} 12. Re1 {[%clk 0:02:46]}  h6 {[%clk 0:02:19]} 13. Ne5 {[%clk 0:02:41]}  Nd7 {[%clk 0:02:09]} 14. Nxd7 {[%clk 0:01:56]}  Qxd7 {[%clk 0:02:10]} 15. dxc5 {[%clk 0:01:56]}  bxc5 {[%clk 0:02:08]} 16. Qg4 {[%clk 0:01:56]}  f6 {[%clk 0:01:56]} 17. Qg6 {[%clk 0:01:53]} 1-0


[Site "https://www.chess.com"]

[Event "Titled Tuesday Blitz August 24 2021"]
[White "Vazquez, Facundo"]
[Black "Karttunen, Mika"]
[WhiteFideId "3007669"]
[BlackFideId "502081"]
[WhiteElo "1984"]
[BlackElo "2343"]
[Result "1/2-1/2"]
[Round "08"]
[TimeControl "180+1"]
[Date "2021.08.24"]
[WhiteClock "0:00:10"]
[BlackClock "0:00:13"]

1. d4 {[%clk 0:00:18]}  Nf6 {[%clk 0:02:52]} 2. c4 {[%clk 0:00:18]}  e6 {[%clk 0:02:52]} 3. Nf3 {[%clk 0:00:19]}  Bb4+ {[%clk 0:02:52]} 4. Bd2 {[%clk 0:00:18]}  Qe7 {[%clk 0:02:51]} 5. g3 {[%clk 0:00:18]}  Bxd2+ {[%clk 0:02:51]} 6. Nbxd2 {[%clk 0:00:19]}  d6 {[%clk 0:02:51]} 7. Bg2 {[%clk 0:00:19]}  O-O {[%clk 0:02:50]} 8. O-O {[%clk 0:00:20]}  e5 {[%clk 0:02:50]} 9. d5 {[%clk 0:00:20]}  a5 {[%clk 0:02:49]} 10. e4 {[%clk 0:00:20]}  Na6 {[%clk 0:02:42]} 11. Ne1 {[%clk 0:00:20]}  Nc5 {[%clk 0:02:41]} 12. Qc2 {[%clk 0:00:20]}  c6 {[%clk 0:02:37]} 13. Nd3 {[%clk 0:00:19]}  Nxd3 {[%clk 0:02:30]} 14. Qxd3 {[%clk 0:00:18]}  cxd5 {[%clk 0:02:30]} 15. cxd5 {[%clk 0:00:19]}  b5 {[%clk 0:02:23]} 16. Rfc1 {[%clk 0:00:18]}  Ba6 {[%clk 0:02:09]} 17. Rc6 {[%clk 0:00:18]}  Nd7 {[%clk 0:02:06]} 18. Rac1 {[%clk 0:00:09]}  Nc5 {[%clk 0:02:05]} 19. Qe3 {[%clk 0:00:08]}  a4 {[%clk 0:01:40]} 20. b4 {[%clk 0:00:04]}  axb3 {[%clk 0:01:33]} 21. Nxb3 {[%clk 0:00:03]}  Na4 {[%clk 0:01:30]} 22. Nd2 {[%clk 0:00:02]}  Qd8 {[%clk 0:01:09]} 23. Rc7 {[%clk 0:00:02]}  Nc5 {[%clk 0:01:06]} 24. Rc6 {[%clk 0:00:02]}  Bb7 {[%clk 0:01:05]} 25. R6xc5 {[%clk 0:00:02]}  dxc5 {[%clk 0:01:05]} 26. Rxc5 {[%clk 0:00:02]}  Rxa2 {[%clk 0:01:03]} 27. Rxb5 {[%clk 0:00:02]}  Ra1+ {[%clk 0:00:59]} 28. Bf1 {[%clk 0:00:02]}  Ba6 {[%clk 0:00:57]} 29. Rb1 {[%clk 0:00:02]}  Rxb1 {[%clk 0:00:56]} 30. Nxb1 {[%clk 0:00:03]}  Bxf1 {[%clk 0:00:56]} 31. Kxf1 {[%clk 0:00:04]}  Qa5 {[%clk 0:00:55]} 32. Nd2 {[%clk 0:00:04]}  Qb5+ {[%clk 0:00:53]} 33. Kg2 {[%clk 0:00:04]}  Rb8 {[%clk 0:00:49]} 34. Nf3 {[%clk 0:00:04]}  f6 {[%clk 0:00:47]} 35. Nh4 {[%clk 0:00:05]}  g6 {[%clk 0:00:47]} 36. Qf3 {[%clk 0:00:04]}  Kg7 {[%clk 0:00:46]} 37. Qg4 {[%clk 0:00:04]}  Qe8 {[%clk 0:00:34]} 38. Nf5+ {[%clk 0:00:04]}  Kh8 {[%clk 0:00:34]} 39. Ne3 {[%clk 0:00:04]}  Qe7 {[%clk 0:00:32]} 40. h4 {[%clk 0:00:04]}  Rd8 {[%clk 0:00:28]} 41. h5 {[%clk 0:00:04]}  Qf7 {[%clk 0:00:26]} 42. h6 {[%clk 0:00:04]}  Qe7 {[%clk 0:00:24]} 43. Qh4 {[%clk 0:00:04]}  Kg8 {[%clk 0:00:23]} 44. Ng4 {[%clk 0:00:04]}  Rf8 {[%clk 0:00:23]} 45. Qh3 {[%clk 0:00:04]}  Qd6 {[%clk 0:00:24]} 46. Ne3 {[%clk 0:00:03]}  Kh8 {[%clk 0:00:19]} 47. Nc4 {[%clk 0:00:04]}  Qc5 {[%clk 0:00:19]} 48. Ne3 {[%clk 0:00:04]}  Qe7 {[%clk 0:00:18]} 49. Qg4 {[%clk 0:00:04]}  Qf7 {[%clk 0:00:18]} 50. Qh3 {[%clk 0:00:04]}  f5 {[%clk 0:00:19]} 51. exf5 {[%clk 0:00:04]}  gxf5 {[%clk 0:00:20]} 52. Qh4 {[%clk 0:00:04]}  f4 {[%clk 0:00:20]} 53. Ng4 {[%clk 0:00:05]}  f3+ {[%clk 0:00:19]} 54. Kh2 {[%clk 0:00:05]}  Qf5 {[%clk 0:00:20]} 55. Ne3 {[%clk 0:00:04]}  Qg6 {[%clk 0:00:19]} 56. Qe7 {[%clk 0:00:02]}  Qxh6+ {[%clk 0:00:19]} 57. Kg1 {[%clk 0:00:03]}  Qg7 {[%clk 0:00:19]} 58. Qxg7+ {[%clk 0:00:03]}  Kxg7 {[%clk 0:00:20]} 59. g4 {[%clk 0:00:03]}  Rd8 {[%clk 0:00:19]} 60. Kh2 {[%clk 0:00:04]}  Kf6 {[%clk 0:00:18]} 61. Kg3 {[%clk 0:00:05]}  e4 {[%clk 0:00:19]} 62. Kf4 {[%clk 0:00:06]}  Re8 {[%clk 0:00:19]} 63. g5+ {[%clk 0:00:06]}  Kg6 {[%clk 0:00:19]} 64. Ng4 {[%clk 0:00:06]}  e3 {[%clk 0:00:18]} 65. Nxe3 {[%clk 0:00:06]}  Rf8+ {[%clk 0:00:17]} 66. Kg4 {[%clk 0:00:06]}  Rf7 {[%clk 0:00:15]} 67. d6 {[%clk 0:00:06]}  Rd7 {[%clk 0:00:15]} 68. Nc4 {[%clk 0:00:07]}  Kg7 {[%clk 0:00:14]} 69. Kxf3 {[%clk 0:00:07]}  Rf7+ {[%clk 0:00:14]} 70. Kg4 {[%clk 0:00:08]}  Rxf2 {[%clk 0:00:14]} 71. Ne5 {[%clk 0:00:08]}  Rd2 {[%clk 0:00:13]} 72. d7 {[%clk 0:00:08]}  Rd6 {[%clk 0:00:12]} 73. Kf5 {[%clk 0:00:09]}  Kf8 {[%clk 0:00:12]} 74. g6 {[%clk 0:00:08]}  hxg6+ {[%clk 0:00:12]} 75. Nxg6+ {[%clk 0:00:09]}  Kf7 {[%clk 0:00:12]} 76. Ne5+ {[%clk 0:00:10]}  Ke7 {[%clk 0:00:12]} 77. d8=Q+ {[%clk 0:00:09]}  Kxd8 {[%clk 0:00:12]} 78. Nf7+ {[%clk 0:00:09]}  Ke7 {[%clk 0:00:13]} 79. Nxd6 {[%clk 0:00:10]} 1/2-1/2


[Site "https://www.chess.com"]

[Event "Titled Tuesday Blitz August 24 2021"]
[White "Vlassov, Nikolai"]
[Black "Moroni, Luca Jr"]
[WhiteFideId "4103360"]
[BlackFideId "865834"]
[WhiteElo "2407"]
[BlackElo "2491"]
[Result "0-1"]
[Round "08"]
[TimeControl "180+1"]
[Date "2021.08.24"]
[WhiteClock "0:00:05"]
[BlackClock "0:00:03"]

1. e4 {[%clk 0:03:00]}  g6 {[%clk 0:02:56]} 2. h4 {[%clk 0:03:00]}  d5 {[%clk 0:02:53]} 3. exd5 {[%clk 0:03:00]}  Qxd5 {[%clk 0:02:54]} 4. h5 {[%clk 0:03:01]}  Bg7 {[%clk 0:02:53]} 5. Nc3 {[%clk 0:03:01]}  Qd6 {[%clk 0:02:48]} 6. Bc4 {[%clk 0:02:58]}  Nc6 {[%clk 0:02:46]} 7. Nge2 {[%clk 0:02:57]}  Bg4 {[%clk 0:02:41]} 8. f3 {[%clk 0:02:54]}  Be6 {[%clk 0:02:41]} 9. Bb5 {[%clk 0:02:49]}  O-O-O {[%clk 0:02:39]} 10. d3 {[%clk 0:02:38]}  Nd4 {[%clk 0:02:38]} 11. Bf4 {[%clk 0:02:31]}  Qb6 {[%clk 0:02:25]} 12. a4 {[%clk 0:02:18]}  a6 {[%clk 0:02:17]} 13. a5 {[%clk 0:02:18]}  Qc5 {[%clk 0:02:16]} 14. Ba4 {[%clk 0:02:18]}  Nxe2 {[%clk 0:01:46]} 15. Kxe2 {[%clk 0:02:04]}  Bxc3 {[%clk 0:01:27]} 16. bxc3 {[%clk 0:02:04]}  Nf6 {[%clk 0:01:28]} 17. hxg6 {[%clk 0:01:53]}  hxg6 {[%clk 0:01:18]} 18. Qd2 {[%clk 0:01:43]}  Nh5 {[%clk 0:01:07]} 19. Bb3 {[%clk 0:01:07]}  Bxb3 {[%clk 0:01:02]} 20. cxb3 {[%clk 0:01:07]}  Nxf4+ {[%clk 0:01:01]} 21. Qxf4 {[%clk 0:01:07]}  Qxc3 {[%clk 0:00:59]} 22. Rxh8 {[%clk 0:00:52]}  Qxd3+ {[%clk 0:00:33]} 23. Kf2 {[%clk 0:00:52]}  Rxh8 {[%clk 0:00:33]} 24. Rc1 {[%clk 0:00:44]}  Qd6 {[%clk 0:00:32]} 25. Rc4 {[%clk 0:00:16]}  Qxf4 {[%clk 0:00:27]} 26. Rxf4 {[%clk 0:00:17]}  f5 {[%clk 0:00:25]} 27. g4 {[%clk 0:00:16]}  e6 {[%clk 0:00:23]} 28. gxf5 {[%clk 0:00:16]}  gxf5 {[%clk 0:00:24]} 29. Ke3 {[%clk 0:00:16]}  Kd7 {[%clk 0:00:20]} 30. Rb4 {[%clk 0:00:15]}  Kc6 {[%clk 0:00:19]} 31. Rc4+ {[%clk 0:00:15]}  Kd6 {[%clk 0:00:19]} 32. Rb4 {[%clk 0:00:16]}  Rb8 {[%clk 0:00:19]} 33. Kf4 {[%clk 0:00:16]}  b5 {[%clk 0:00:17]} 34. axb6 {[%clk 0:00:15]}  Rxb6 {[%clk 0:00:17]} 35. Rd4+ {[%clk 0:00:15]}  Ke7 {[%clk 0:00:16]} 36. Rd3 {[%clk 0:00:15]}  Kf6 {[%clk 0:00:16]} 37. Rc3 {[%clk 0:00:15]}  Rb4+ {[%clk 0:00:13]} 38. Ke3 {[%clk 0:00:15]}  c5 {[%clk 0:00:10]} 39. Rxc5 {[%clk 0:00:10]}  Rxb3+ {[%clk 0:00:10]} 40. Kf4 {[%clk 0:00:10]}  e5+ {[%clk 0:00:09]} 41. Kg3 {[%clk 0:00:11]}  e4 {[%clk 0:00:08]} 42. Rc6+ {[%clk 0:00:07]}  Kg5 {[%clk 0:00:08]} 43. Rxa6 {[%clk 0:00:04]}  Rxf3+ {[%clk 0:00:07]} 44. Kg2 {[%clk 0:00:05]}  Rb3 {[%clk 0:00:07]} 45. Ra2 {[%clk 0:00:04]}  Kg4 {[%clk 0:00:07]} 46. Ra3 {[%clk 0:00:05]}  Rxa3 {[%clk 0:00:03]} 0-1


[Site "https://www.chess.com"]

[Event "Titled Tuesday Blitz August 24 2021"]
[White "Wagner, Dennis"]
[Black "Hovhannisyan, Robert"]
[WhiteFideId "24650684"]
[BlackFideId "13302507"]
[WhiteElo "2355"]
[BlackElo "2669"]
[Result "0-1"]
[Round "08"]
[TimeControl "180+1"]
[Date "2021.08.24"]
[WhiteClock "0:00:18"]
[BlackClock "0:00:10"]

1. d4 {[%clk 0:03:00]}  Nc6 {[%clk 0:02:56]} 2. d5 {[%clk 0:02:58]}  Ne5 {[%clk 0:02:56]} 3. e4 {[%clk 0:02:59]}  e6 {[%clk 0:02:53]} 4. f4 {[%clk 0:02:59]}  Ng6 {[%clk 0:02:54]} 5. dxe6 {[%clk 0:02:59]}  fxe6 {[%clk 0:02:53]} 6. Be3 {[%clk 0:02:44]}  Nf6 {[%clk 0:02:48]} 7. Nc3 {[%clk 0:02:44]}  Bb4 {[%clk 0:02:47]} 8. Bd3 {[%clk 0:02:10]}  O-O {[%clk 0:02:32]} 9. Nh3 {[%clk 0:02:05]}  d5 {[%clk 0:02:21]} 10. e5 {[%clk 0:01:58]}  d4 {[%clk 0:02:13]} 11. Bxg6 {[%clk 0:01:03]}  dxc3 {[%clk 0:01:55]} 12. exf6 {[%clk 0:01:02]}  cxb2+ {[%clk 0:01:44]} 13. Kf2 {[%clk 0:01:02]}  bxa1=Q {[%clk 0:01:35]} 14. Bxh7+ {[%clk 0:01:01]}  Kxh7 {[%clk 0:01:00]} 15. Qh5+ {[%clk 0:00:57]}  Kg8 {[%clk 0:01:00]} 16. Ng5 {[%clk 0:00:33]}  Rxf6 {[%clk 0:00:47]} 17. Qh7+ {[%clk 0:00:32]}  Kf8 {[%clk 0:00:48]} 18. Qh8+ {[%clk 0:00:32]}  Ke7 {[%clk 0:00:48]} 19. Qxg7+ {[%clk 0:00:32]}  Kd6 {[%clk 0:00:33]} 20. Rxa1 {[%clk 0:00:33]}  Kc6 {[%clk 0:00:31]} 21. Rb1 {[%clk 0:00:30]}  Bf8 {[%clk 0:00:20]} 22. Qh7 {[%clk 0:00:30]}  b6 {[%clk 0:00:17]} 23. c4 {[%clk 0:00:20]}  Kb7 {[%clk 0:00:17]} 24. Qe4+ {[%clk 0:00:20]}  Kb8 {[%clk 0:00:17]} 25. c5 {[%clk 0:00:18]}  Qd5 {[%clk 0:00:14]} 26. Qxd5 {[%clk 0:00:14]}  exd5 {[%clk 0:00:15]} 27. h4 {[%clk 0:00:15]}  Bf5 {[%clk 0:00:12]} 28. Rb2 {[%clk 0:00:15]}  Kb7 {[%clk 0:00:13]} 29. h5 {[%clk 0:00:15]}  Re8 {[%clk 0:00:12]} 30. Bd4 {[%clk 0:00:15]}  Rc6 {[%clk 0:00:11]} 31. Nf3 {[%clk 0:00:13]}  Bxc5 {[%clk 0:00:10]} 32. Bxc5 {[%clk 0:00:14]}  Rxc5 {[%clk 0:00:11]} 33. Nd4 {[%clk 0:00:14]}  Bg4 {[%clk 0:00:11]} 34. h6 {[%clk 0:00:14]}  Re4 {[%clk 0:00:10]} 35. h7 {[%clk 0:00:14]}  Re8 {[%clk 0:00:11]} 36. f5 {[%clk 0:00:14]}  Rh8 {[%clk 0:00:10]} 37. Kg3 {[%clk 0:00:14]}  Bxf5 {[%clk 0:00:09]} 38. Nxf5 {[%clk 0:00:15]}  Rxh7 {[%clk 0:00:10]} 39. Kf4 {[%clk 0:00:16]}  Rc4+ {[%clk 0:00:10]} 40. Ke5 {[%clk 0:00:16]}  Rd7 {[%clk 0:00:10]} 41. Rd2 {[%clk 0:00:15]}  Re4+ {[%clk 0:00:10]} 42. Kf6 {[%clk 0:00:15]}  Rg4 {[%clk 0:00:11]} 43. Ke6 {[%clk 0:00:15]}  Rd8 {[%clk 0:00:09]} 44. Ke7 {[%clk 0:00:16]}  Rdg8 {[%clk 0:00:08]} 45. Rxd5 {[%clk 0:00:16]}  Rxg2 {[%clk 0:00:08]} 46. Kd7 {[%clk 0:00:16]}  Rf8 {[%clk 0:00:06]} 47. Ne7 {[%clk 0:00:17]}  Rf7 {[%clk 0:00:06]} 48. Re5 {[%clk 0:00:17]}  Rgg7 {[%clk 0:00:07]} 49. a4 {[%clk 0:00:16]}  Rxe7+ {[%clk 0:00:08]} 50. Rxe7 {[%clk 0:00:17]}  Rxe7+ {[%clk 0:00:08]} 51. Kxe7 {[%clk 0:00:18]}  c5 {[%clk 0:00:09]} 52. Kd6 {[%clk 0:00:18]}  c4 {[%clk 0:00:10]} 0-1


[Site "https://www.chess.com"]